bitfinex-derivatives/quotes_BTCF0:USTF0_20241224
["timestamp","ask_amount","ask_price","bid_price","bid_amount"]
[1735052167418,0.303,97418.0,97417.0,0.001]
[1735052167722,0.051377,97411.0,97410.0,0.12549094]
[1735052167923,0.01175528,97418.0,97398.0,0.3608]
[1735052168115,0.10138905,97410.0,97398.0,0.3608]
[1735052168319,0.051385,97397.0,97385.0,0.1877]
[1735052168823,0.051381,97403.0,97395.0,0.3608]
[1735052169021,0.10138905,97410.0,97395.0,0.3608]
[1735052169216,0.10981064,97410.0,97406.0,0.3608]
[1735052169417,0.00842159,97410.0,97405.0,0.3608]
[1735052169611,0.051383,97401.0,97395.0,0.3608]
[1735052169916,0.10138905,97416.0,97395.0,0.3608]
[1735052170117,0.051384,97399.0,97396.0,0.0025401]
[1735052170319,0.051384,97398.0,97396.0,0.0025401]
[1735052170826,0.051384,97398.0,97396.0,0.0015401]
[1735052171016,0.051384,97398.0,97396.0,0.0025401]
[1735052173325,0.00847158,97400.0,97396.0,0.0015401]
[1735052173625,0.051384,97398.0,97396.0,0.0015401]
[1735052174416,0.051384,97398.0,97372.0,0.3608]
[1735052174417,0.051397,97373.0,97372.0,0.3608]
[1735052174620,0.051394,97380.0,97372.0,0.3608]
[1735052175023,0.54972001,97397.0,97372.0,0.3608]
[1735052175024,0.05139,97387.0,97372.0,0.3608]
[1735052175321,0.00060001,97397.0,97383.0,0.3608]
[1735052175523,0.051384,97399.0,97393.0,0.3608]
[1735052175718,0.051384,97399.0,97394.0,0.1876]
[1735052175920,0.051384,97398.0,97394.0,0.1876]
[1735052176323,0.00860579,97406.0,97394.0,0.1876]
[1735052176516,0.05138,97405.0,97394.0,0.1876]
[1735052177343,0.001,97398.0,97394.0,0.1876]
[1735052177928,0.051385,97397.0,97394.0,0.1876]
[1735052178621,0.051385,97397.0,97394.0,0.1886]
[1735052178827,0.3608,97408.0,97394.0,0.1886]
[1735052178828,0.051382,97402.0,97394.0,0.1886]
[1735052179026,0.051383,97401.0,97394.0,0.1886]
[1735052179632,0.051383,97401.0,97394.0,0.1896]
[1735052181229,0.051383,97401.0,97394.0,0.1886]
[1735052181427,0.051383,97401.0,97394.0,0.1896]
[1735052181637,0.051385,97396.0,97394.0,0.1896]
[1735052182034,0.051385,97396.0,97394.0,0.002]
[1735052182934,0.051385,97396.0,97395.0,0.1735]
[1735052183226,0.3608,97409.0,97395.0,0.1735]
[1735052183430,0.001,97396.0,97395.0,0.1735]
[1735052184324,0.001,97396.0,97395.0,0.353]
[1735052184732,0.10138905,97420.0,97410.0,0.051377]
[1735052184935,0.10138905,97420.0,97414.0,0.3608]
[1735052185731,0.11017787,97420.0,97414.0,0.3608]
[1735052186334,0.11317787,97420.0,97414.0,0.3618]
[1735052186525,0.01178882,97420.0,97414.0,0.3618]
[1735052188533,0.051375,97416.0,97414.0,0.3618]
[1735052189539,0.01178882,97420.0,97414.0,0.3618]
[1735052189742,0.00878882,97420.0,97419.0,0.412173]
[1735052189935,0.051369,97427.0,97419.0,0.3608]
[1735052190439,0.05137,97424.0,97419.0,0.3608]
[1735052190829,0.05137,97424.0,97420.0,0.1811]
[1735052192033,0.051367,97430.0,97420.0,0.1811]
[1735052192335,0.002,97424.0,97422.0,0.051371]
[1735052193344,0.051368,97429.0,97420.0,0.1811]
[1735052194541,0.051368,97429.0,97421.0,0.051372]
[1735052194841,0.002,97424.0,97421.0,0.051372]
[1735052195039,0.002,97424.0,97422.0,0.051371]
[1735052195438,0.051366,97433.0,97422.0,0.051371]
[1735052195635,0.002,97429.0,97422.0,0.051371]
[1735052196335,0.002,97424.0,97422.0,0.051371]
[1735052197530,0.05136,97445.0,97438.0,0.051363]
[1735052197730,0.05136,97445.0,97438.0,0.412163]
[1735052198132,0.10199526,97450.0,97438.0,0.412163]
[1735052198537,0.05136,97445.0,97438.0,0.412163]
[1735052198735,0.01892893,97439.0,97438.0,0.3608]
[1735052198929,0.3608,97474.0,97438.0,0.6618]
[1735052199134,0.10138905,97470.0,97454.0,0.051354]
[1735052199337,0.051348,97467.0,97461.0,0.3608]
[1735052199744,0.051348,97466.0,97461.0,0.3608]
[1735052200140,0.051349,97465.0,97461.0,0.3608]
[1735052200541,0.10138905,97471.0,97461.0,0.41215]
[1735052200839,0.3747,97489.0,97461.0,0.41215]
[1735052200840,0.051341,97479.0,97469.0,0.412146]
[1735052201037,0.051342,97478.0,97477.0,0.3608]
[1735052201238,0.10138905,97487.0,97477.0,0.3608]
[1735052201432,0.00888736,97489.0,97477.0,0.3608]
[1735052201643,0.10142967,97490.0,97477.0,0.3608]
[1735052201942,0.051338,97485.0,97477.0,0.3608]
[1735052202143,0.11052084,97490.0,97477.0,0.3618]
[1735052202446,0.11052084,97490.0,97477.0,0.001]
[1735052202447,0.051342,97479.0,97477.0,0.001]
[1735052202848,0.051346,97470.0,97469.0,0.001]
[1735052203268,0.051354,97455.0,97454.0,0.3608]
[1735052204234,0.00913229,97455.0,97448.0,0.00153927]
[1735052204548,0.051357,97449.0,97448.0,0.00153927]
[1735052205042,0.3608,97475.0,97448.0,0.00153927]
[1735052205235,0.051354,97456.0,97454.0,0.3608]
[1735052205443,0.10138905,97470.0,97448.0,0.00153927]
[1735052205641,0.051357,97449.0,97448.0,0.00153927]
[1735052207543,0.0605115,97449.0,97448.0,0.00153927]
[1735052208245,0.0605115,97449.0,97424.0,0.1876]
[1735052208448,0.3608,97440.0,97424.0,0.1876]
[1735052208642,0.46218905,97440.0,97424.0,0.1876]
[1735052209150,0.051368,97428.0,97424.0,0.1876]
[1735052209951,0.3608,97440.0,97424.0,0.1876]
[1735052210151,0.10138905,97440.0,97424.0,0.1876]
[1735052210651,0.10138905,97440.0,97424.0,0.1926]
[1735052210842,0.10138905,97440.0,97424.0,0.1986]
[1735052211043,0.051366,97432.0,97424.0,0.1986]
[1735052211243,0.051369,97427.0,97424.0,0.1986]
[1735052211443,0.051365,97435.0,97424.0,0.1986]
[1735052211660,0.10138905,97440.0,97424.0,0.1986]
[1735052212053,0.051363,97438.0,97424.0,0.24997]
[1735052212252,0.3608,97443.0,97424.0,0.24397]
[1735052212445,0.3608,97443.0,97424.0,0.24997]
[1735052212652,0.051358,97448.0,97435.0,0.051364]
[1735052212849,0.051358,97447.0,97435.0,0.051364]
[1735052213053,0.05135,97463.0,97431.0,0.3608]
[1735052213054,0.051363,97438.0,97431.0,0.3608]
[1735052213948,0.10138905,97450.0,97431.0,0.3608]
[1735052214153,0.051365,97435.0,97431.0,0.3608]
[1735052214352,0.10138905,97450.0,97431.0,0.3638]
[1735052214549,0.051357,97450.0,97431.0,0.3668]
[1735052214851,0.051358,97448.0,97439.0,0.3608]
[1735052215455,0.051358,97447.0,97439.0,0.3608]
[1735052216053,0.37010168,97451.0,97439.0,0.3608]
[1735052216054,0.051359,97446.0,97439.0,0.3608]
[1735052216442,0.051357,97449.0,97439.0,0.3608]
[1735052216644,0.05136,97443.0,97439.0,0.3608]
[1735052216856,0.051362,97441.0,97439.0,0.3618]
[1735052217547,0.051362,97441.0,97439.0,0.001]
[1735052217749,0.3608,97441.0,97439.0,0.001]
[1735052217950,0.3608,97441.0,97416.0,0.3608]
[1735052218151,0.051368,97430.0,97416.0,0.3608]
[1735052218347,0.051368,97430.0,97426.0,0.3608]
[1735052218552,0.051367,97431.0,97429.0,0.3608]
[1735052219861,0.06079185,97431.0,97429.0,0.3608]
[1735052220555,0.051373,97419.0,97418.0,0.00153932]
[1735052220754,0.05137,97425.0,97418.0,0.00153932]
[1735052220951,0.051371,97423.0,97418.0,0.00153932]
[1735052221156,0.00942485,97431.0,97418.0,0.00153932]
[1735052221157,0.051371,97422.0,97418.0,0.00153932]
[1735052221358,0.051372,97420.0,97418.0,0.00153932]
[1735052221551,0.00942485,97431.0,97418.0,0.00453932]
[1735052221552,0.051369,97426.0,97418.0,0.00453932]
[1735052221757,0.00942485,97431.0,97425.0,0.3608]
[1735052221956,0.051369,97427.0,97425.0,0.3608]
[1735052222353,0.11060581,97440.0,97425.0,0.3608]
[1735052222552,0.051369,97426.0,97425.0,0.3608]
[1735052224255,0.3608,97446.0,97425.0,0.3618]
[1735052224256,0.051366,97433.0,97425.0,0.3618]
[1735052224455,0.051366,97433.0,97425.0,0.5391]
[1735052225655,0.10138905,97440.0,97425.0,0.5391]
[1735052225854,0.10138905,97440.0,97433.0,0.3608]
[1735052225855,0.051364,97437.0,97433.0,0.3608]
[1735052226050,0.10138905,97440.0,97435.0,0.051364]
[1735052226356,0.00052001,97498.0,97434.0,0.1841]
[1735052226357,0.3608,97482.0,97439.0,0.3608]
[1735052226550,0.01870886,97526.0,97481.0,0.3608]
[1735052226753,0.01870886,97526.0,97485.0,0.051338]
[1735052226754,0.10138905,97520.0,97485.0,0.051338]
[1735052227051,0.14267747,97527.0,97508.0,0.3608]
[1735052227262,0.3608,97524.0,97508.0,0.3608]
[1735052227454,0.10138905,97520.0,97516.0,0.3608]
[1735052227656,0.051321,97517.0,97516.0,0.3608]
[1735052228549,0.00932388,97527.0,97508.0,0.3608]
[1735052228861,0.051325,97510.0,97508.0,0.3608]
[1735052229160,0.051325,97510.0,97508.0,0.3618]
[1735052231068,0.051325,97510.0,97508.0,0.001]
[1735052232061,0.351325,97510.0,97508.0,0.001]
[1735052233264,0.051326,97509.0,97508.0,0.001]
[1735052233766,0.051331,97498.0,97497.0,0.3608]
[1735052236163,0.11075326,97510.0,97497.0,0.3608]
[1735052236464,0.051329,97502.0,97497.0,0.3608]
[1735052236666,0.05133,97501.0,97497.0,0.3608]
[1735052237562,0.051331,97499.0,97497.0,0.3608]
[1735052239360,0.11075326,97510.0,97497.0,0.3608]
[1735052239567,0.051331,97499.0,97497.0,0.3608]
[1735052241066,0.051342,97478.0,97477.0,0.3608]
[1735052243068,0.051336,97490.0,97477.0,0.415142]
[1735052243268,0.051333,97496.0,97487.0,0.3608]
[1735052243473,0.051333,97496.0,97495.0,0.3608]
[1735052243772,0.10138905,97500.0,97495.0,0.3608]
[1735052243967,0.051327,97507.0,97495.0,0.3608]
[1735052244275,0.10138905,97510.0,97505.0,0.3608]
[1735052244973,0.051327,97506.0,97505.0,0.3608]
[1735052245162,0.10138905,97510.0,97495.0,0.3608]
[1735052245163,0.051332,97498.0,97495.0,0.3608]
[1735052245467,0.051332,97497.0,97495.0,0.3608]
[1735052250177,0.3591,97513.0,97495.0,0.3608]
[1735052250363,0.10138905,97505.0,97504.0,0.3608]
[1735052250563,0.051328,97506.0,97504.0,0.3608]
[1735052250964,0.00960705,97513.0,97504.0,0.3608]
[1735052251169,0.05132,97519.0,97512.0,0.3608]
[1735052251669,0.051323,97515.0,97512.0,0.3608]
[1735052252168,0.051323,97514.0,97512.0,0.3608]
[1735052253773,0.051323,97514.0,97512.0,0.3618]
[1735052254369,0.10138905,97520.0,97512.0,0.3618]
[1735052254675,0.051321,97518.0,97512.0,0.3618]
[1735052255874,0.10138905,97520.0,97512.0,0.3618]
[1735052256387,0.051323,97514.0,97512.0,0.3618]
[1735052257569,0.10138905,97520.0,97512.0,0.3618]
[1735052258684,0.10138905,97520.0,97512.0,0.3608]
[1735052258876,0.051323,97514.0,97512.0,0.3618]
[1735052261877,0.10138905,97520.0,97512.0,0.3618]
[1735052262085,0.00038046,113940.0,97521.0,0.051319]
[1735052262086,0.051306,97546.0,97521.0,0.051319]
[1735052262272,0.051307,97544.0,97541.0,0.3608]
[1735052262675,0.10138905,97550.0,97541.0,0.3608]
[1735052262885,0.051308,97543.0,97541.0,0.3608]
[1735052263181,0.051311,97538.0,97531.0,0.3608]
[1735052263388,0.10138905,97541.0,97531.0,0.3608]
[1735052263686,0.051313,97532.0,97531.0,0.3608]
[1735052264183,0.051313,97533.0,97531.0,0.3608]
[1735052265087,0.10138905,97541.0,97522.0,0.00112]
[1735052265088,0.3608,97537.0,97523.0,0.18029467]
[1735052265283,0.051315,97530.0,97523.0,0.18029467]
[1735052265486,0.37027706,97537.0,97523.0,0.18029467]
[1735052265686,0.051314,97532.0,97523.0,0.18029467]
[1735052266081,0.051314,97532.0,97522.0,0.3608]
[1735052266283,0.37079707,97537.0,97522.0,0.3608]
[1735052266489,0.051315,97530.0,97522.0,0.3608]
[1735052266888,0.051315,97530.0,97523.0,0.001]
[1735052268285,0.051315,97530.0,97522.0,0.3618]
[1735052269088,0.10138905,97532.0,97523.0,0.001]
[1735052269493,0.051317,97526.0,97523.0,0.001]
[1735052269995,0.051317,97525.0,97522.0,0.3618]
[1735052270793,0.37027706,97537.0,97522.0,0.3618]
[1735052270991,0.051318,97523.0,97522.0,0.3618]
[1735052271395,0.051318,97523.0,97522.0,0.3608]
[1735052272500,0.051314,97532.0,97522.0,0.3608]
[1735052272700,0.36132001,97537.0,97522.0,0.3608]
[1735052273010,0.10138905,97532.0,97522.0,0.3608]
[1735052273307,0.051317,97526.0,97522.0,0.3608]
[1735052275299,0.00959339,97526.0,97522.0,0.3608]
[1735052275495,0.10138905,97540.0,97522.0,0.3608]
[1735052275696,0.10138905,97540.0,97539.0,0.3608]
[1735052276002,0.06094476,97541.0,97539.0,0.3608]
[1735052276903,0.06094476,97541.0,97539.0,0.3618]
[1735052277906,0.06094476,97541.0,97539.0,0.001]
[1735052278097,0.06094476,97541.0,97522.0,0.3608]
[1735052278298,0.051316,97527.0,97522.0,0.3608]
[1735052278698,0.10138905,97532.0,97522.0,0.3608]
[1735052278902,0.051317,97525.0,97522.0,0.3608]
[1735052279503,0.051317,97525.0,97522.0,0.3618]
[1735052281309,0.051316,97527.0,97522.0,0.3618]
[1735052281798,0.002,97525.0,97522.0,0.3618]
[1735052282206,0.051318,97524.0,97522.0,0.3618]
[1735052283605,0.051318,97524.0,97522.0,0.3608]
[1735052283906,0.002,97525.0,97524.0,0.051318]
[1735052284801,0.01204494,97532.0,97524.0,0.051318]
[1735052285005,0.051311,97537.0,97531.0,0.3608]
[1735052285206,0.051312,97536.0,97531.0,0.3608]
[1735052285502,0.11344856,97540.0,97531.0,0.3608]
[1735052285698,0.051312,97534.0,97531.0,0.3608]
[1735052285901,0.001,97532.0,97531.0,0.3608]
[1735052286401,0.11344856,97540.0,97531.0,0.3608]
[1735052286593,0.001,97536.0,97532.0,0.051313]
[1735052286807,0.001,97536.0,97532.0,0.412113]
[1735052287902,0.11344856,97540.0,97532.0,0.412113]
[1735052288095,0.11344856,97540.0,97533.0,0.051313]
[1735052288504,0.11344856,97540.0,97517.0,0.3608]
[1735052288505,0.051315,97530.0,97517.0,0.3608]
[1735052288708,0.051317,97526.0,97525.0,0.3608]
[1735052289202,0.10138905,97530.0,97525.0,0.3608]
[1735052289709,0.051311,97536.0,97525.0,0.3608]
[1735052289897,0.051311,97536.0,97535.0,0.3608]
[1735052290102,0.01205951,97540.0,97525.0,0.3608]
[1735052290403,0.10138905,97535.0,97525.0,0.3608]
[1735052290606,0.051316,97527.0,97525.0,0.3608]
[1735052290797,0.1862,97534.0,97525.0,0.3608]
[1735052291002,0.051314,97531.0,97525.0,0.3608]
[1735052291203,0.10138905,97535.0,97525.0,0.3608]
[1735052291410,0.10138905,97535.0,97533.0,0.3608]
[1735052291906,0.001,97534.0,97533.0,0.3608]
[1735052292210,0.052312,97534.0,97533.0,0.3608]
[1735052292506,0.051312,97534.0,97533.0,0.3608]
[1735052293108,0.052312,97534.0,97533.0,0.3608]
[1735052294009,0.052312,97534.0,97518.0,0.051321]
[1735052294010,0.052312,97534.0,97524.0,0.3608]
[1735052294209,0.15370105,97534.0,97533.0,0.3608]
[1735052294414,0.051312,97534.0,97533.0,0.3608]
[1735052294713,0.052312,97534.0,97533.0,0.3608]
[1735052294900,0.052312,97534.0,97524.0,0.3608]
[1735052295303,0.052312,97534.0,97524.0,0.3618]
[1735052295509,0.051312,97534.0,97524.0,0.3618]
[1735052295708,0.052312,97534.0,97524.0,0.3618]
[1735052297006,0.10238905,97534.0,97524.0,0.3618]
[1735052297204,0.051315,97529.0,97524.0,0.3618]
[1735052297506,0.051317,97525.0,97524.0,0.3618]
[1735052297711,0.10238905,97534.0,97524.0,0.3618]
[1735052297901,0.051314,97531.0,97524.0,0.3618]
[1735052298103,0.051317,97525.0,97524.0,0.3618]
[1735052298406,0.001,97529.0,97524.0,0.3618]
[1735052298910,0.051315,97530.0,97524.0,0.3618]
[1735052300106,0.001,97531.0,97524.0,0.3618]
[1735052300515,0.10138905,97534.0,97524.0,0.3618]
[1735052300516,0.001,97529.0,97524.0,0.3608]
[1735052300914,0.051316,97527.0,97524.0,0.3608]
[1735052301208,0.001,97530.0,97524.0,0.3618]
[1735052301609,0.15270205,97534.0,97524.0,0.3618]
[1735052301911,0.001,97529.0,97524.0,0.3618]
[1735052302417,0.001,97530.0,97524.0,0.3618]
[1735052303108,0.05132,97526.0,97524.0,0.3618]
[1735052304113,0.001,97534.0,97524.0,0.3618]
[1735052304302,0.001,97526.0,97524.0,0.3608]
[1735052304502,0.001,97526.0,97524.0,0.3618]
[1735052304913,0.051317,97532.0,97524.0,0.3618]
[1735052305111,0.001,97526.0,97524.0,0.3618]
[1735052306612,0.001,97526.0,97524.0,0.3608]
[1735052308514,0.01301478,97526.0,97524.0,0.3608]
[1735052311911,0.01301478,97526.0,97524.0,0.412119]
[1735052313013,0.001,97526.0,97524.0,0.412119]
[1735052319615,0.3608,97545.0,97524.0,0.3608]
[1735052319812,0.10138905,97550.0,97544.0,0.3608]
[1735052320018,0.11590816,97550.0,97544.0,0.3608]
[1735052320218,0.01451911,97550.0,97544.0,0.3608]
[1735052320418,0.051305,97552.0,97544.0,0.3608]
[1735052320619,0.10138905,97560.0,97544.0,0.3608]
[1735052320620,0.051307,97547.0,97544.0,0.3608]
[1735052320821,0.001,97545.0,97536.0,0.1828]
[1735052321317,0.051307,97547.0,97544.0,0.001]
[1735052321821,0.3608,97554.0,97543.0,0.3608]
[1735052321822,0.46218905,97554.0,97543.0,0.3608]
[1735052322027,0.10138905,97554.0,97551.0,0.3608]
[1735052322228,0.051301,97558.0,97551.0,0.3608]
[1735052322526,0.051301,97558.0,97546.0,0.051308]
[1735052322926,0.11613614,97560.0,97543.0,0.3608]
[1735052323121,0.10138905,97553.0,97543.0,0.412109]
[1735052323613,0.10138905,97553.0,97544.0,0.001]
[1735052324121,0.10138905,97553.0,97543.0,0.3618]
[1735052324629,0.10138905,97553.0,97544.0,0.001]
[1735052324827,0.10138905,97553.0,97549.0,0.051306]
[1735052325121,0.051301,97558.0,97543.0,0.412109]
[1735052325323,0.10138905,97553.0,97543.0,0.413109]
[1735052326822,0.10338905,97553.0,97544.0,0.001]
[1735052327232,0.051311,97542.0,97529.0,0.3608]
[1735052327430,0.10138905,97540.0,97529.0,0.412117]
[1735052327728,0.10138905,97540.0,97529.0,0.3608]
[1735052328123,0.051312,97539.0,97529.0,0.3608]
[1735052328526,0.10138905,97540.0,97529.0,0.3608]
[1735052328831,0.051316,97533.0,97529.0,0.3608]
[1735052329029,0.1866,97538.0,97529.0,0.3608]
[1735052329229,0.051316,97532.0,97529.0,0.3608]
[1735052329834,0.051317,97531.0,97529.0,0.3608]
[1735052331018,0.004,97532.0,97529.0,0.3608]
[1735052331222,0.055317,97531.0,97529.0,0.3608]
[1735052332226,0.3729,97530.0,97500.0,0.5514]
[1735052332422,0.46218905,97518.0,97500.0,0.5526]
[1735052332630,0.3608,97518.0,97504.0,0.05133]
[1735052333026,0.412123,97518.0,97504.0,0.05133]
[1735052333327,0.47484906,97530.0,97508.0,0.3608]
[1735052333530,0.05132,97524.0,97508.0,0.3608]
[1735052333721,0.051318,97528.0,97508.0,0.3608]
[1735052334024,0.051325,97515.0,97508.0,0.3618]
[1735052334221,0.10138905,97520.0,97510.0,0.051328]
[1735052334421,0.3608,97524.0,97508.0,0.3618]
[1735052334633,0.3608,97524.0,97514.0,0.051325]
[1735052336632,0.3608,97524.0,97514.0,0.001]
[1735052336836,0.3618,97524.0,97515.0,0.051325]
[1735052337435,0.3618,97524.0,97514.0,0.001]
[1735052337631,0.46318905,97524.0,97514.0,0.001]
[1735052338338,0.46418905,97524.0,97515.0,0.001]
[1735052338635,0.3628,97524.0,97515.0,0.001]
[1735052338835,0.41412,97524.0,97515.0,0.001]
[1735052339136,0.41412,97524.0,97509.0,0.051328]
[1735052339535,0.051321,97523.0,97509.0,0.051328]
[1735052340233,0.36332001,97524.0,97509.0,0.051328]
[1735052340431,0.10138905,97520.0,97509.0,0.051328]
[1735052341235,0.15271105,97520.0,97509.0,0.051328]
[1735052341833,0.15271105,97520.0,97509.0,0.052328]
[1735052342834,0.051322,97520.0,97509.0,0.052328]
[1735052343033,0.051322,97520.0,97509.0,0.001]
[1735052343233,0.051322,97520.0,97510.0,0.051327]
[1735052343432,0.01375739,97520.0,97509.0,0.001]
[1735052343632,0.05132,97525.0,97516.0,0.412124]
[1735052344030,0.10138905,97530.0,97516.0,0.3608]
[1735052344439,0.05132,97524.0,97516.0,0.3608]
[1735052344641,0.11546567,97530.0,97516.0,0.3608]
[1735052344934,0.051322,97521.0,97516.0,0.3608]
[1735052345139,0.11546567,97530.0,97516.0,0.3608]
[1735052345539,0.051327,97511.0,97498.0,0.3608]
[1735052345835,0.10138905,97509.0,97498.0,0.3608]
[1735052346140,0.051327,97511.0,97498.0,0.412134]
[1735052346339,0.3608,97513.0,97498.0,0.413254]
[1735052346538,0.10138905,97510.0,97498.0,0.36192]
[1735052346734,0.10138905,97510.0,97498.0,0.3608]
[1735052347040,0.10138905,97510.0,97499.0,0.004]
[1735052347041,0.051333,97501.0,97499.0,0.004]
[1735052347439,0.051337,97492.0,97491.0,0.17997695]
[1735052347635,0.051339,97488.0,97481.0,0.1775]
[1735052347938,0.05134,97487.0,97481.0,0.1775]
[1735052348135,0.05134,97487.0,97478.0,0.17997695]
[1735052348838,0.05134,97487.0,97485.0,0.00708]
[1735052349633,0.05134,97487.0,97485.0,0.00508]
[1735052350145,0.06540277,97487.0,97485.0,0.00508]
[1735052350639,0.06540277,97487.0,97485.0,0.011]
[1735052351834,0.06540277,97487.0,97485.0,0.007]
[1735052352036,0.06540277,97487.0,97485.0,0.008]
[1735052352544,0.06540277,97487.0,97485.0,0.001]
[1735052353736,0.42620277,97487.0,97485.0,0.001]
[1735052354735,0.06540277,97487.0,97485.0,0.001]
[1735052354930,0.01406277,97487.0,97485.0,0.001]
[1735052355240,0.50812205,97500.0,97485.0,0.05234]
[1735052355241,0.10138905,97500.0,97485.0,0.05234]
[1735052355543,0.00052001,97504.0,97494.0,0.3608]
[1735052355749,0.10138905,97520.0,97503.0,0.3608]
[1735052356043,0.10138905,97520.0,97519.0,0.3608]
[1735052356244,0.05132,97526.0,97519.0,0.3608]
[1735052356850,0.06491403,97526.0,97519.0,0.3608]
[1735052357348,0.06491403,97526.0,97519.0,0.3618]
[1735052357349,0.06991403,97526.0,97519.0,0.3618]
[1735052357738,0.051321,97522.0,97519.0,0.3618]
[1735052358046,0.183,97521.0,97503.0,0.3608]
[1735052358252,0.10138905,97513.0,97495.0,0.184]
[1735052358558,0.10138905,97505.0,97494.0,0.3608]
[1735052358843,0.051333,97500.0,97494.0,0.3608]
[1735052360043,0.052333,97500.0,97494.0,0.3608]
[1735052360844,0.051335,97496.0,97494.0,0.3608]
[1735052361746,0.051335,97496.0,97493.0,0.3608]
[1735052361935,0.001,97500.0,97497.0,0.051334]
[1735052362140,0.11548068,97505.0,97504.0,0.051331]
[1735052362334,0.01409163,97505.0,97504.0,0.412131]
[1735052362548,0.051323,97516.0,97504.0,0.412131]
[1735052362549,0.10138905,97514.0,97504.0,0.412131]
[1735052363147,0.10138905,97514.0,97504.0,0.3608]
[1735052363343,0.051328,97506.0,97494.0,0.3608]
[1735052363549,0.002,97505.0,97502.0,0.3608]
[1735052365039,0.051328,97506.0,97502.0,0.3608]
[1735052365550,0.004,97505.0,97502.0,0.3608]
[1735052366146,0.005,97506.0,97502.0,0.3608]
[1735052366347,0.05133,97504.0,97502.0,0.3608]
[1735052368344,0.051332,97500.0,97492.0,0.3608]
[1735052368552,0.10138905,97502.0,97492.0,0.3608]
[1735052368854,0.10138905,97502.0,97491.0,0.3608]
[1735052369242,0.051333,97499.0,97491.0,0.3608]
[1735052370142,0.051333,97498.0,97491.0,0.3608]
[1735052370651,0.10438905,97502.0,97491.0,0.3608]
[1735052370948,0.051334,97496.0,97491.0,0.3608]
[1735052371348,0.051336,97493.0,97482.0,0.3608]
[1735052371541,0.10138905,97493.0,97482.0,0.3608]
[1735052371747,0.003,97499.0,97485.0,0.05134]
[1735052372059,0.003,97496.0,97490.0,0.3608]
[1735052372749,0.28978905,97500.0,97490.0,0.3608]
[1735052373155,0.051334,97495.0,97490.0,0.3608]
[1735052375447,0.054334,97495.0,97490.0,0.3608]
[1735052376554,0.051336,97491.0,97490.0,0.3608]
[1735052377254,0.051336,97492.0,97490.0,0.3608]
[1735052378154,0.003,97491.0,97490.0,0.3608]
[1735052378453,0.003,97491.0,97482.0,0.3608]
[1735052378652,0.051337,97490.0,97482.0,0.3608]
[1735052378853,0.051338,97489.0,97482.0,0.3608]
[1735052379153,0.11759707,97492.0,97482.0,0.3608]
[1735052379350,0.051338,97488.0,97482.0,0.3608]
[1735052379855,0.051338,97488.0,97482.0,0.3628]
[1735052380156,0.01620802,97492.0,97485.0,0.3608]
[1735052380343,0.10138905,97520.0,97486.0,0.1738]
[1735052380542,0.10138905,97510.0,97505.0,0.3608]
[1735052381841,0.10638905,97510.0,97505.0,0.3618]
[1735052382148,0.3608,97508.0,97505.0,0.001]
[1735052382349,0.3608,97508.0,97498.0,0.3608]
[1735052383056,0.051327,97509.0,97498.0,0.3608]
[1735052383057,0.3608,97507.0,97498.0,0.3608]
[1735052383253,0.5343,97507.0,97498.0,0.3608]
[1735052383553,0.5343,97507.0,97489.0,0.3608]
[1735052383852,0.10138905,97500.0,97489.0,0.3608]
[1735052385846,0.53490001,97507.0,97491.0,0.051336]
[1735052386046,0.5343,97507.0,97489.0,0.3608]
[1735052386248,0.1735,97507.0,97499.0,0.3608]
[1735052386454,0.1735,97507.0,97495.0,0.051334]
[1735052386654,0.585628,97507.0,97489.0,0.3608]
[1735052386859,0.10138905,97500.0,97489.0,0.412137]
[1735052387059,0.10138905,97500.0,97490.0,0.051337]
[1735052387652,0.10138905,97500.0,97491.0,0.051336]
[1735052387962,0.002,97500.0,97497.0,0.3608]
[1735052388459,0.1735,97507.0,97497.0,0.3608]
[1735052388761,0.002,97500.0,97497.0,0.3608]
[1735052391164,0.051328,97507.0,97497.0,0.3608]
[1735052391366,0.002,97500.0,97497.0,0.3608]
[1735052391757,0.002,97500.0,97497.0,0.3618]
[1735052392353,0.051333,97499.0,97497.0,0.3618]
[1735052392554,0.051333,97499.0,97497.0,0.3608]
[1735052394169,0.002,97500.0,97489.0,0.3608]
[1735052394365,0.051336,97492.0,97489.0,0.3608]
[1735052395269,0.10338905,97499.0,97489.0,0.3608]
[1735052395561,0.002,97492.0,97489.0,0.3608]
[1735052396765,0.002,97492.0,97490.0,0.051336]
[1735052396965,0.10138905,97520.0,97498.0,0.051332]
[1735052397172,0.051325,97513.0,97512.0,0.3608]
[1735052397665,0.051325,97513.0,97489.0,0.3608]
[1735052397872,0.051332,97499.0,97491.0,0.17997695]
[1735052398069,0.051332,97499.0,97498.0,0.001]
[1735052398268,0.051329,97505.0,97498.0,0.001]
[1735052398669,0.051329,97505.0,97497.0,0.3608]
[1735052398879,0.05133,97503.0,97500.0,0.3608]
[1735052399273,0.05133,97502.0,97500.0,0.3608]
[1735052400466,0.051332,97499.0,97498.0,0.001]
[1735052400969,0.051332,97500.0,97494.0,0.3608]
[1735052401568,0.051334,97495.0,97494.0,0.3608]
[1735052401985,0.10138905,97510.0,97494.0,0.3608]
[1735052402168,0.1644,97517.0,97506.0,0.3608]
[1735052402363,0.051325,97512.0,97506.0,0.3608]
[1735052402567,0.051326,97511.0,97507.0,0.3358]
[1735052402869,0.05133,97503.0,97494.0,0.3608]
[1735052403058,0.051331,97501.0,97494.0,0.3608]
[1735052403872,0.051332,97500.0,97494.0,0.3608]
[1735052404377,0.10138905,97504.0,97494.0,0.3608]